bitfinex/quotes_ETHUSD_20220310
["timestamp","ask_amount","ask_price","bid_price","bid_amount"]
[1646880140904,0.00273558,2673.7,2673.3,1.20750805]
[1646880141405,0.029132,2673.5,2673.1,0.06570126]
[1646880141661,0.021531,2673.5,2672.9,4.4642]
[1646880142049,0.02715,2673.4,2672.9,4.4642]
[1646880142448,0.02715,2673.4,2673.1,0.90399865]
[1646880142849,0.021001,2673.6,2673.1,1.20399865]
[1646880144251,0.021001,2673.7,2673.1,1.57909865]
[1646880144459,0.00273573,2673.7,2673.1,1.26524298]
[1646880145253,0.021001,2673.8,2673.1,1.64034298]
[1646880145501,0.00273578,2673.7,2673.6,0.91388623]
[1646880145902,0.00273578,2673.7,2673.6,1.21388623]
[1646880146305,0.00273578,2673.7,2673.6,0.91388623]
[1646880146502,0.021001,2673.9,2673.1,0.06124433]
[1646880146702,0.02373698,2673.8,2673.1,0.3]
[1646880146902,0.02373698,2673.8,2672.9,1.4786]
[1646880147803,0.021001,2673.8,2673.4,1.02675498]
[1646880148004,0.00273569,2673.7,2673.4,1.32675498]
[1646880148904,0.58474582,2673.8,2673.4,1.32675498]
[1646880149153,0.06332498,2673.7,2673.4,1.32675498]
[1646880150149,0.58474582,2673.8,2673.4,1.32675498]
[1646880150448,0.00273589,2673.7,2673.4,1.32675498]
[1646880150849,0.0642488,2673.7,2673.4,1.32675498]
[1646880151250,0.06151291,2673.7,2673.4,1.32675498]
[1646880151650,0.0642488,2673.7,2673.4,1.32675498]
[1646880152550,0.0642488,2673.7,2672.9,1.1786]
[1646880152551,0.028405,2673.5,2672.9,1.1786]
[1646880152752,0.027177,2673.4,2672.9,1.1786]
[1646880153697,0.08075643,2673.4,2672.9,1.1786]
[1646880153897,0.08075643,2673.4,2673.3,1.06381781]
[1646880153898,0.027177,2673.4,2673.3,1.06381781]
[1646880154200,0.06197091,2673.7,2673.5,0.08153099]
[1646880154801,0.05923541,2673.7,2673.5,0.08153099]
[1646880155197,0.08556735,2673.7,2673.5,0.08153099]
[1646880156002,0.08283141,2673.7,2673.5,0.08153099]
[1646880156402,0.08556735,2673.7,2673.5,0.08153099]
[1646880157247,0.08283141,2673.7,2673.5,0.08153099]
[1646880157647,0.08556735,2673.7,2673.5,0.08153099]
[1646880157848,0.06197135,2673.7,2673.5,0.08153099]
[1646880158549,0.05923541,2673.7,2673.5,0.08153099]
[1646880158748,0.06197135,2673.7,2673.5,0.08012525]
[1646880159751,0.05923541,2673.7,2673.5,0.08012525]
[1646880159954,0.06197135,2673.7,2673.5,0.08012525]
[1646880160605,0.01197135,2673.7,2673.5,0.08012525]
[1646880160802,0.00923541,2673.7,2673.5,0.08012525]
[1646880161203,0.01197135,2673.7,2673.5,0.08012525]
[1646880161405,0.00273594,2673.7,2673.5,0.08012525]
[1646880162007,0.58474582,2673.8,2673.5,0.08012525]
[1646880162406,0.00273594,2673.7,2673.5,0.08012525]
[1646880163208,0.58474582,2673.8,2673.5,0.08012525]
[1646880163609,0.00273594,2673.7,2673.5,0.08012525]
[1646880164549,0.58474582,2673.8,2673.5,0.08012525]
[1646880164751,0.00272709,2673.7,2673.5,0.08012525]
[1646880165761,0.58474582,2673.8,2673.5,0.08012525]
[1646880165954,0.00272709,2673.7,2673.5,0.08012525]
[1646880166355,0.00272709,2673.7,2673.6,1.55148793]
[1646880166954,0.021001,2674.0,2673.6,1.55148793]
[1646880167156,0.00272708,2673.8,2673.6,1.55148793]
[1646880168000,0.021001,2674.1,2673.5,0.08012525]
[1646880168200,0.02755,2674.0,2673.5,0.08012525]
[1646880168402,0.03190394,2673.8,2673.5,0.08012525]
[1646880169302,0.029168,2673.8,2673.5,0.08012525]
[1646880169502,0.03190392,2673.8,2673.5,0.08012525]
[1646880169703,0.029168,2673.6,2673.5,0.08012525]
[1646880169904,0.07071804,2673.7,2673.5,0.08012525]
[1646880170905,0.07345397,2673.7,2673.5,0.08012525]
[1646880171308,0.04651197,2673.7,2673.5,0.08012525]
[1646880171749,0.05079143,2674.0,2673.5,0.08012525]
[1646880171950,0.00273593,2673.7,2673.6,1.55159304]
[1646880172952,0.03176416,2674.2,2673.6,1.85159304]
[1646880173147,0.03176416,2674.2,2673.7,1.55159304]
[1646880173148,0.00273592,2673.8,2673.7,1.55159304]
[1646880174247,0.05276516,2674.2,2673.8,0.00820776]
[1646880174449,0.00273593,2673.9,2673.8,0.00820776]
[1646880174749,0.00273593,2673.9,2673.8,0.30820776]
[1646880174949,0.00273593,2673.9,2673.8,1.85960865]
[1646880175248,0.05276516,2674.2,2673.8,1.85960865]
[1646880175509,0.00271646,2674.0,2673.9,1.55140089]
[1646880176608,0.03176416,2674.2,2673.9,1.55140089]
[1646880176808,0.00271645,2674.1,2673.9,1.55140089]
[1646880177710,0.03176416,2674.2,2673.9,1.85140089]
[1646880177907,0.00271709,2674.1,2674.0,1.55140089]
[1646880178908,0.03176416,2674.2,2674.0,1.55140089]
[1646880179144,0.03448125,2674.2,2674.0,1.55140089]
[1646880180044,0.03176416,2674.2,2674.0,1.55140089]
[1646880180449,0.03176416,2674.2,2673.8,0.00820776]
[1646880180450,0.027004,2674.1,2673.8,0.00820776]
[1646880180652,0.029168,2673.9,2673.8,0.00820776]
[1646880181348,0.029168,2673.9,2673.8,0.00687393]
[1646880182648,0.07349008,2673.9,2673.8,0.00687393]
[1646880183403,0.62123957,2673.9,2673.8,0.00687393]
[1646880185805,0.59207157,2673.9,2673.8,0.00687393]
[1646880186207,0.61594857,2673.9,2673.8,0.00687393]
[1646880188652,0.59207157,2673.9,2673.8,0.00687393]
[1646880191407,4.11666157,2673.9,2673.8,0.00687393]
[1646880191607,5.56166157,2673.9,2673.8,0.00687393]
[1646880192604,2.06166157,2673.9,2673.8,0.00687393]
[1646880192807,1.06166157,2673.9,2673.8,0.00687393]
[1646880193606,4.56166157,2673.9,2673.8,0.00687393]
[1646880193812,4.56166157,2673.9,2672.6,5.02281715]
[1646880193813,3.7,2673.7,2672.6,0.07141052]
[1646880194170,0.0545457,2673.3,2672.7,1.5517607]
[1646880194357,0.0545457,2673.3,2671.6,2.39650907]
[1646880194358,0.9365,2672.5,2671.6,0.7598316]
[1646880194556,0.04385269,2672.3,2671.7,1.5522305]
[1646880194756,0.029168,2672.0,2671.7,1.5522305]
[1646880194958,0.04385269,2672.3,2672.1,0.05833599]
[1646880195157,0.04385269,2672.3,2672.2,1.5522305]
[1646880195358,1.91686269,2672.3,2672.2,1.5522305]
[1646880195559,1.91686269,2672.3,2672.1,0.05833599]
[1646880195763,0.05520608,2672.2,2672.1,0.05833599]
[1646880197894,0.50106095,2672.7,2672.1,0.05833599]
[1646880198094,0.04846645,2672.6,2672.1,0.05833599]
[1646880198493,0.04362256,2672.3,2672.1,0.05833599]
[1646880198694,0.93635,2672.4,2672.1,0.05833599]
[1646880200395,0.05279252,2672.3,2672.1,0.05833599]
[1646880204751,0.445,2672.3,2672.1,0.05833599]
[1646880204952,0.04642323,2672.2,2672.1,0.05833599]
[1646880205152,0.49142323,2672.2,2672.1,0.05833599]
[1646880207711,1.49142323,2672.2,2672.1,0.05833599]
[1646880210548,1.68683069,2672.2,2672.1,0.05833599]
[1646880210751,1.49142323,2672.2,2672.1,0.05833599]
[1646880216202,1.48998664,2672.2,2672.1,0.05833599]
[1646880217647,4.98998664,2672.2,2672.1,0.05833599]
[1646880217852,5.98998664,2672.2,2672.1,0.05833599]
[1646880218650,2.48998664,2672.2,2672.1,0.05833599]
[1646880218848,1.48998664,2672.2,2672.1,0.05833599]
[1646880221502,4.98998664,2672.2,2672.1,0.05833599]
[1646880221701,2.48998664,2672.2,2672.1,0.05833599]
[1646880221900,0.93674,2672.1,2670.9,3.68932742]
[1646880222101,0.93674,2672.1,2671.0,1.55253386]
[1646880222102,0.98763522,2671.9,2671.0,1.55253386]
[1646880222303,0.04569459,2671.8,2671.0,1.55253386]
[1646880223204,0.93675,2671.7,2671.0,1.55253386]
[1646880223404,0.93673,2671.6,2671.0,1.55253386]
[1646880223612,2.8102,2671.7,2671.6,0.71936227]
[1646880223804,3.8102,2671.7,2671.6,0.71936227]
[1646880224004,2.8102,2671.7,2671.6,0.71936227]
[1646880224252,3.8102,2671.7,2671.6,0.71936227]
[1646880224454,2.8102,2671.7,2671.6,0.71936227]
[1646880224653,3.8102,2671.7,2671.6,0.71936227]
[1646880225253,7.3102,2671.7,2671.6,0.71936227]
[1646880225456,7.3102,2671.7,2670.9,1.20575104]
[1646880225656,7.3102,2671.7,2671.0,1.55271302]
[1646880225657,4.68466,2671.5,2671.0,1.55271302]
[1646880225856,0.93693,2671.3,2670.9,1.20575104]
[1646880226058,0.93693,2671.3,2670.7,0.024501]
[1646880226256,0.93694,2671.2,2670.8,1.55277934]
[1646880227357,1.87385,2671.1,2670.8,1.55277934]
[1646880230508,2.43696424,2671.1,2670.8,1.55277934]
[1646880230710,2.43696424,2671.1,2670.9,0.08453831]
[1646880230711,0.56311424,2671.1,2670.9,0.08453831]
[1646880230909,0.56311424,2671.1,2671.0,1.55277934]
[1646880231951,4.08128,2671.9,2671.0,1.92787934]
[1646880231952,2.208,2671.9,2671.0,1.92787934]
[1646880232249,1.77519574,2671.9,2671.2,0.07798103]
[1646880232449,1.77519574,2671.9,2671.4,0.07413556]
[1646880232652,0.56719574,2671.9,2671.5,2.77266021]
[1646880232851,0.56719574,2671.9,2671.6,1.55277934]
[1646880233450,0.56719574,2671.9,2671.6,1.50277934]
[1646880233651,0.56719574,2671.9,2671.5,1.21988087]
[1646880234054,0.56719574,2671.9,2671.0,0.07119714]
[1646880234451,0.93663,2671.7,2671.0,0.07119714]
[1646880235050,0.93663,2671.7,2671.3,0.96406958]
[1646880235256,0.93663,2671.7,2671.3,1.03674139]
[1646880236106,1.50371574,2671.9,2671.4,0.07625215]
[1646880236505,1.0,2671.7,2671.4,0.07625215]
[1646880236710,2.87347,2671.7,2671.4,0.07625215]
[1646880236905,2.87347,2671.7,2671.3,0.96406958]
[1646880237106,1.0,2671.7,2671.3,0.96406958]
[1646880237305,1.0,2671.7,2671.4,0.07836959]
[1646880238808,1.0,2672.2,2671.4,3.95346959]
[1646880239165,1.1631,2672.3,2671.5,0.08246042]
[1646880241353,0.93645,2672.2,2671.5,0.08246042]
[1646880243002,1.87296,2672.2,2671.5,0.08246042]
[1646880244601,0.93645,2672.2,2671.5,0.08246042]
[1646880244802,1.1631,2672.3,2671.5,0.08246042]
[1646880245000,1.1631,2672.3,2671.6,0.07967648]
[1646880246206,2.14832277,2672.3,2671.6,0.07967648]
[1646880246405,0.98522277,2672.3,2671.4,0.08183693]
[1646880246664,0.93638,2672.3,2671.4,0.08183693]
[1646880246848,0.93638,2672.3,2671.5,0.07010331]
[1646880248650,0.93638,2672.3,2671.7,0.025723]
[1646880249447,0.93638,2672.3,2671.6,0.08279335]
[1646880249849,0.93638,2672.3,2671.4,0.77884636]
[1646880250047,0.93638,2672.3,2671.4,0.08793973]
[1646880250505,0.93657,2672.1,2671.4,0.08793973]
[1646880250903,0.93657,2671.9,2671.4,0.08793973]
[1646880252004,2.87313,2672.1,2671.4,0.08793973]
[1646880252303,1.87313,2672.1,2671.4,0.08793973]
[1646880252503,2.87313,2672.1,2671.4,0.08793973]
[1646880252704,1.87313,2672.1,2671.4,0.08793973]
[1646880253405,1.87313,2672.1,2671.5,1.55238962]
[1646880253904,1.93645,2672.2,2671.5,1.55238962]
[1646880254347,0.93645,2672.2,2671.5,1.55238962]
[1646880255247,0.93645,2672.2,2671.6,1.55238962]
[1646880255452,0.93645,2672.2,2671.7,1.55238962]
[1646880255651,0.93645,2672.2,2671.8,1.55238962]
[1646880255851,0.93645,2672.2,2671.9,1.55238962]
[1646880256051,0.93645,2672.2,2672.0,1.55238962]
[1646880256255,0.93645,2672.2,2672.1,1.55238962]
[1646880256453,0.93645,2672.2,2671.6,1.55238962]
[1646880256852,0.93645,2672.2,2671.6,1.55121528]
[1646880258805,0.93656,2672.1,2671.6,1.55121528]
[1646880259002,2.80966,2672.1,2671.6,1.55121528]
[1646880259202,0.93654,2672.0,2671.6,1.55121528]
[1646880260808,1.49026781,2672.0,2671.6,1.55121528]
[1646880261418,0.93654,2672.0,2671.6,1.55121528]
[1646880261852,1.0,2671.8,2671.6,1.55121528]
[1646880262052,1.0,2672.1,2671.8,0.6558664]
[1646880262253,2.1843,2672.4,2671.9,3.5]
[1646880262458,0.04436234,2672.6,2672.2,0.026392]
[1646880262668,0.04971009,2672.8,2672.2,0.026392]
[1646880262855,8.1876,2672.9,2672.2,0.026392]
[1646880263055,0.5,2673.0,2672.6,0.026677]
[1646880263356,0.5,2673.0,2672.7,1.13952017]
[1646880264155,8.30840444,2673.3,2672.7,1.13952017]
[1646880264355,0.98840444,2673.3,2672.7,1.13952017]
[1646880265155,0.04762464,2673.2,2672.6,0.026677]
[1646880267012,0.99054679,2673.6,2672.9,0.026551]
[1646880267207,0.99054679,2673.6,2673.2,0.026606]
[1646880267408,0.05458679,2673.6,2673.2,0.026606]
[1646880267807,0.0027098,2673.7,2673.2,0.026606]
[1646880268010,1.2352,2673.8,2673.2,0.026606]
[1646880268207,0.00266591,2673.7,2673.2,0.026606]
[1646880269008,1.2352,2673.8,2673.2,0.026606]
[1646880269269,0.00266631,2673.7,2673.2,0.026606]
[1646880270265,7.32,2673.9,2673.2,0.026606]
[1646880270468,0.00275608,2673.7,2673.2,0.026606]
[1646880270668,0.00275608,2673.7,2673.1,0.0779644]
[1646880270869,0.00275608,2673.7,2673.0,0.3]
[1646880271069,0.00275608,2673.7,2672.9,0.326551]
[1646880271269,0.05542605,2673.7,2672.7,0.06808181]
[1646880271469,3.62453422,2673.7,2672.7,0.06808181]
[1646880271780,3.62453422,2673.7,2672.6,1.145]
[1646880271781,4.37459994,2673.6,2672.6,1.145]
[1646880271971,0.49670119,2673.5,2672.2,0.06831178]
[1646880272168,0.49670119,2673.5,2672.1,4.0216]
[1646880272169,0.05148084,2673.4,2672.1,5.2087]
[1646880272367,0.05065998,2673.2,2672.1,5.2087]
[1646880272568,0.05065998,2673.2,2671.7,0.024501]
[1646880272569,0.88000503,2672.8,2671.7,0.024501]
[1646880272771,0.93638,2672.5,2671.6,1.26149333]
[1646880273007,0.4985626,2672.4,2671.6,1.26149333]
[1646880273206,0.0477971,2672.3,2671.6,0.07439333]
[1646880274008,1.9207971,2672.3,2671.6,0.07439333]
[1646880275010,1.91929443,2672.3,2671.6,0.07439333]
[1646880275915,2.47285817,2672.3,2671.7,0.024501]
[1646880276514,0.59985817,2672.3,2671.7,0.024501]
[1646880276961,0.59985817,2672.3,2671.9,1.55219289]
[1646880278558,0.59985817,2672.3,2671.9,1.57740189]
[1646880278759,0.59985817,2672.3,2672.0,1.55219289]
[1646880279159,0.59985817,2672.3,2671.9,0.025209]
[1646880279360,0.93657,2671.9,2671.4,1.166301]
[1646880279563,0.93657,2671.9,2671.8,2.20820841]
[1646880279760,0.93657,2671.9,2671.8,0.6558664]
[1646880280506,1.0,2672.0,2671.8,0.6558664]
[1646880280707,1.0,2672.0,2671.9,1.55238436]
[1646880280908,1.0,2672.0,2671.9,1.15238436]
[1646880281608,1.93656,2672.0,2671.9,1.15238436]
[1646880282510,0.04567605,2671.9,2671.8,0.6558664]
[1646880282912,1.93656,2672.0,2671.8,0.6558664]
[1646880285762,1.0,2672.0,2671.8,0.6558664]
[1646880286563,1.0,2672.0,2671.9,0.026053]
[1646880286763,2.54050443,2672.3,2672.0,0.65570037]
[1646880286967,0.60407443,2672.3,2672.0,0.65570037]
[1646880287165,1.60407443,2672.3,2672.0,0.65570037]
[1646880287370,0.60407443,2672.3,2672.0,0.65570037]
[1646880287768,1.0,2672.1,2672.0,0.65570037]
[1646880295508,1.93646,2672.1,2672.0,0.65570037]
[1646880296709,0.55356374,2672.3,2672.0,0.65570037]
[1646880297012,0.55356374,2672.3,2672.2,0.026334]
[1646880301062,0.55356374,2672.3,2672.2,1.57838926]
[1646880304107,0.55356374,2672.3,2672.2,1.55205526]
[1646880304311,0.60851294,2672.3,2672.2,1.55205526]
[1646880304514,0.93648,2672.2,2672.0,0.65570037]
[1646880304713,0.93648,2672.2,2672.1,1.55232835]
[1646880305319,0.55356374,2672.3,2672.1,1.55232835]
[1646880306760,0.55356374,2672.3,2672.1,1.57776935]
[1646880306960,0.55356374,2672.3,2672.2,1.55232835]
[1646880307359,0.93623,2672.6,2672.3,1.10211364]
[1646880307562,0.93623,2672.6,2672.3,1.12848764]
[1646880307960,1.0,2672.5,2672.3,1.12848764]
[1646880308161,1.0,2672.5,2672.4,1.55219825]
[1646880309161,1.0,2672.5,2672.4,6.15801909]
[1646880309362,1.0,2672.5,2672.4,10.76383993]
[1646880309564,1.0,2672.5,2672.4,10.76385727]
[1646880310405,1.93634,2672.5,2672.4,10.76385727]
[1646880310608,1.98876168,2672.5,2672.4,9.21164168]
[1646880311012,2.55868814,2672.5,2672.4,9.21164168]
[1646880311809,3.00368814,2672.5,2672.4,9.21164168]
[1646880312813,2.01492646,2672.5,2672.4,9.21164168]
[1646880314259,1.56992646,2672.5,2672.4,9.24080968]
[1646880314464,0.56992646,2672.5,2672.4,10.79305503]
[1646880315261,0.56992646,2672.5,2672.4,10.76388703]
[1646880328221,0.56992646,2672.5,2672.4,11.71901755]
[1646880328621,0.56992646,2672.5,2672.4,11.74461255]
[1646880329176,1.0,2672.7,2672.5,4.28565137]
[1646880329360,2.81252085,2673.2,2672.6,1.55224535]
[1646880329559,0.56552085,2673.2,2672.6,1.55224535]
[1646880329759,0.05117771,2673.1,2672.8,4.60582084]
[1646880329960,0.05117771,2673.1,2672.9,4.60582084]
[1646880332063,0.93614,2673.0,2672.9,4.60582084]
[1646880334911,0.93614,2673.0,2672.9,9.21164168]
[1646880338458,0.93614,2673.0,2672.9,10.76365284]
[1646880338963,1.50159085,2673.2,2672.9,10.76365284]
[1646880339263,0.56552085,2673.2,2673.0,1.55195295]
[1646880339471,7.32,2673.3,2673.0,1.55195295]
[1646880339662,7.32,2673.3,2673.2,0.028893]
[1646880339864,7.32,2673.3,2673.2,0.028095]
[1646880340066,0.57054146,2673.6,2673.2,1.58004795]
[1646880340262,0.57054146,2673.6,2673.4,4.60582084]
[1646880340519,0.57054146,2673.6,2673.5,6.15777379]
[1646880340920,0.00273694,2673.7,2673.5,6.48350479]
[1646880341120,1.05502157,2674.1,2673.5,6.48350479]
[1646880341121,0.98709434,2674.0,2673.5,4.90582084]
[1646880341323,0.98709434,2674.0,2673.6,1.55163283]
[1646880341523,0.00273729,2673.7,2673.6,1.55163283]
[1646880341722,0.00273729,2673.7,2673.6,1.57646183]
[1646880342323,0.93571,2674.1,2673.6,1.57646183]
[1646880342522,3.40875483,2674.2,2673.6,0.024829]
[1646880342822,0.00273732,2673.8,2673.5,4.90582084]
[1646880343423,0.93853732,2673.8,2673.5,4.90582084]
[1646880343623,0.9358,2673.8,2673.5,4.60582084]
[1646880343823,0.93853732,2673.8,2673.5,4.60582084]
[1646880344022,0.93595,2673.6,2673.5,4.60582084]
[1646880344463,0.05047153,2673.6,2673.5,4.60582084]
[1646880345466,0.98640153,2673.6,2673.5,4.60582084]
[1646880345666,1.05047153,2673.6,2673.5,3.48985424]
[1646880345866,1.05047153,2673.6,2673.5,4.60582084]
[1646880346066,1.05047153,2673.6,2673.5,8.09567508]
[1646880346466,0.05047153,2673.6,2673.5,8.09567508]
[1646880346865,0.00273727,2673.7,2673.5,8.09567508]
[1646880347068,0.05703908,2673.7,2673.5,8.09567508]
[1646880347270,0.05430181,2673.7,2673.5,8.09567508]
[1646880347566,0.05703908,2673.7,2673.5,8.09567508]
[1646880347765,1.0,2673.6,2673.5,8.09567508]
[1646880348307,0.99022181,2673.7,2673.5,8.09567508]
[1646880348708,0.99295908,2673.7,2673.5,8.09567508]
[1646880348907,1.0,2673.6,2673.5,8.09567508]
[1646880350108,1.0,2673.6,2673.5,8.12035608]
[1646880352357,1.03284025,2673.6,2673.5,8.12035608]
[1646880353358,1.03284025,2673.6,2673.5,8.09567508]
[1646880356408,1.03284025,2673.6,2673.5,3.48985424]
[1646880356811,1.03284025,2673.6,2673.5,8.04567508]
[1646880369056,1.03284025,2673.6,2673.5,1.99572682]
[1646880369057,4.97784025,2673.6,2673.5,1.99572682]
[1646880369258,0.93615,2673.3,2672.8,0.024501]
[1646880369458,1.05294004,2673.2,2672.6,1.1954]
[1646880369658,0.04353371,2673.1,2672.7,1.55200132]
[1646880371319,3.54353371,2673.1,2672.7,1.55200132]
[1646880371523,3.54353371,2673.1,2672.5,1.08565137]
[1646880371524,1.98643663,2673.0,2672.5,1.08565137]
[1646880371718,0.445,2672.9,2672.5,1.08565137]
[1646880372814,0.03284025,2672.8,2672.5,1.08565137]
[1646880373014,0.9363,2672.7,2672.5,1.08565137]
[1646880373414,0.03284025,2672.8,2672.5,1.08565137]
[1646880373617,0.03284025,2672.8,2672.6,1.55213033]
[1646880374459,0.03284025,2672.8,2672.7,1.99572682]
[1646880374859,0.03284025,2672.8,2672.7,3.5729916]
[1646880376564,0.03284025,2672.8,2672.7,3.5477596]
[1646880376765,0.03284025,2672.8,2672.7,1.99572682]
[1646880378610,1.91902025,2672.9,2672.7,1.99572682]
[1646880379616,1.91902025,2672.9,2672.5,1.08565137]
[1646880379817,1.91902025,2672.9,2672.7,1.99572682]
[1646880380720,0.98284025,2672.9,2672.8,0.029168]
[1646880380921,0.98284025,2672.9,2672.8,1.58115823]
[1646880381760,0.98284025,2672.9,2672.7,2.02022782]
[1646880382161,0.98284025,2672.9,2672.8,1.55200133]
[1646880382962,0.98284025,2672.9,2672.8,1.57971833]
[1646880384464,0.98284025,2672.9,2672.7,1.99572682]
[1646880384665,0.98284025,2672.9,2672.8,1.55201108]
[1646880384863,0.98284025,2672.9,2672.8,1.55200081]
[1646880385063,0.98284025,2672.9,2672.8,1.99572682]
[1646880385264,0.98284025,2672.9,2672.8,3.54773122]
[1646880385514,0.98284025,2672.9,2672.8,3.54772544]
[1646880387118,0.98284025,2672.9,2672.8,3.57325244]
[1646880388118,0.98284025,2672.9,2672.8,3.54772544]
[1646880388320,0.98284025,2672.9,2672.8,1.99572682]
[1646880388920,0.98284025,2672.9,2672.8,3.54773707]
[1646880389180,3.42330938,2673.2,2672.8,3.54773707]
[1646880389373,3.42330938,2673.2,2672.9,1.55200263]
[1646880389573,2.42330938,2673.2,2672.9,1.55200263]
[1646880389774,3.42330938,2673.2,2672.8,1.99572682]
[1646880389974,0.9824,2673.1,2672.8,1.99572682]
[1646880390174,1.91853,2673.1,2672.5,1.11015237]
[1646880390375,1.91853,2673.1,2672.8,1.99572682]
[1646880391073,1.91853,2673.1,2672.9,1.55199069]
[1646880391380,1.91853,2673.1,2672.8,1.99572682]
[1646880391774,1.91853,2673.1,2672.9,1.55199902]
[1646880391978,2.8547165,2673.1,2672.8,1.99572682]
[1646880393112,3.7909065,2673.1,2672.8,1.99572682]
[1646880395517,3.7909065,2673.1,2672.5,1.11015237]
[1646880395717,3.7909065,2673.1,2672.8,1.99572682]
[1646880397166,1.91853,2673.1,2672.8,1.99572682]
[1646880397568,1.91853,2673.1,2672.9,1.55204273]
[1646880400919,1.91853,2673.1,2672.6,0.024501]
[1646880401118,1.91853,2673.1,2672.5,1.11015237]
[1646880401119,1.91853,2673.1,2673.0,1.99572682]
[1646880401321,1.91853,2673.1,2673.0,3.54773271]
[1646880402322,0.55094938,2673.2,2673.0,4.61528174]
[1646880402522,0.55094938,2673.2,2673.1,1.58117389]
[1646880402723,0.55094938,2673.2,2673.1,1.55200589]
[1646880403121,0.55094938,2673.2,2673.0,3.03836285]
[1646880403323,0.55094938,2673.2,2673.1,1.55188165]
[1646880406574,0.55094938,2673.2,2673.1,3.54653315]
[1646880412164,0.9824,2673.5,2673.2,1.10189876]
[1646880412361,0.9824,2673.5,2673.3,1.55188165]
[1646880412563,1.53810725,2673.5,2673.3,1.55188165]
[1646880412763,1.53810725,2673.5,2673.4,1.9946515]
[1646880412963,1.53810725,2673.5,2673.4,3.54653315]
[1646880413866,0.55570725,2673.5,2673.4,7.07182115]
[1646880414066,0.01103179,2674.0,2673.6,3.7]
[1646880414267,0.01103179,2674.0,2673.9,1.1461816]
[1646880414472,0.01103179,2674.0,2673.9,6.22603425]
[1646880414677,0.03176416,2674.2,2673.9,6.52603425]
[1646880414870,0.03176416,2674.2,2674.1,0.029168]
[1646880415066,0.03176416,2674.2,2674.1,5.54065115]
[1646880415265,0.01964976,2674.4,2674.3,0.07438819]
[1646880415266,0.03929952,2674.4,2674.3,0.07438819]
[1646880415523,0.03929952,2674.4,2674.3,5.15543784]
[1646880415723,0.03929952,2674.4,2674.3,1.65543784]
[1646880417122,0.06045187,2675.2,2674.5,3.7]
[1646880417123,2.02637265,2675.0,2674.5,3.7]
[1646880417331,8.852e-05,2674.9,2674.8,11.8251]
[1646880417525,0.00018844,2675.0,2674.9,15.5251]
[1646880417822,0.00018844,2675.0,2674.9,18.49908165]
[1646880418022,0.00018844,2675.0,2674.9,20.49373315]
[1646880418223,0.0285832,2675.2,2675.1,0.3751]
[1646880418424,0.056848,2675.2,2675.1,5.05188165]
[1646880418623,0.056848,2675.2,2675.1,16.87698165]
[1646880419023,0.056848,2675.2,2675.1,15.3251]
[1646880420569,0.0233654,2675.3,2675.2,0.028152]
[1646880420771,0.0233654,2675.3,2675.2,15.46176222]
[1646880421074,0.05804092,2675.5,2675.3,15.5251]
[1646880421371,0.05804092,2675.5,2675.4,15.44114529]
[1646880421570,0.05804092,2675.5,2675.4,12.24114529]
[1646880421771,0.05804092,2675.5,2675.4,12.154268]
[1646880421969,0.05804092,2675.5,2675.4,0.404268]
[1646880422172,0.05804092,2675.5,2675.2,0.029168]
[1646880422370,0.05804092,2675.5,2675.4,0.02863]
[1646880423231,0.05804092,2675.5,2675.4,2.0232815]
[1646880423422,0.05804092,2675.5,2675.4,1.9946515]
[1646880423825,0.05804092,2675.5,2675.4,0.639617]
[1646880424019,3.38991696,2675.5,2675.4,0.232617]
[1646880424221,4.38991696,2675.5,2675.4,0.232617]
[1646880424621,7.88991696,2675.5,2675.4,0.232617]
[1646880424821,5.00304092,2675.5,2675.4,0.232617]
[1646880425020,1.50304092,2675.5,2675.4,0.232617]
[1646880425226,1.48544092,2675.5,2675.4,0.232617]
[1646880425824,5.54631852,2675.5,2675.4,0.232617]
[1646880426224,6.54631852,2675.5,2675.4,0.232617]
[1646880427263,3.04631852,2675.5,2675.4,0.232617]
[1646880427666,2.04631852,2675.5,2675.4,0.232617]
[1646880427870,6.54631852,2675.5,2675.4,0.232617]
[1646880428063,5.54631852,2675.5,2675.4,0.232617]
[1646880428263,3.04631852,2675.5,2674.5,0.97474605]
[1646880428464,3.98158852,2675.5,2674.6,0.027048]
[1646880428665,0.93528,2675.3,2675.0,0.232617]
[1646880428864,0.05228156,2675.2,2675.0,0.232617]
[1646880429266,0.05530088,2675.2,2675.0,0.232617]
[1646880429470,0.93546,2675.0,2673.4,2.70171026]
[1646880429669,0.93546,2675.0,2673.2,1.79280539]
[1646880429670,0.93561,2674.5,2673.7,0.029168]
[1646880429866,0.04737167,2674.4,2673.3,1.1962]
[1646880430066,0.49237167,2674.4,2673.3,1.220701]
[1646880430269,0.05489024,2674.3,2673.4,0.026855]
[1646880430520,0.04700343,2674.0,2673.4,1.17565721]
[1646880430718,0.04700343,2674.0,2673.6,0.028207]
[1646880430719,0.98285253,2674.0,2673.6,0.028207]
[1646880431017,0.98285253,2674.0,2673.3,0.024501]
[1646880431218,0.98285253,2674.0,2673.4,0.026603]
[1646880431418,0.98285253,2674.0,2673.5,0.026868]
[1646880431617,0.98285253,2674.0,2673.4,0.026603]
[1646880431817,0.05509982,2673.8,2673.3,0.024501]
[1646880432018,0.05509982,2673.8,2673.4,1.12148716]
[1646880432218,0.82563036,2673.8,2673.4,1.12148716]
[1646880432419,0.82563036,2673.8,2673.4,1.14655616]
[1646880432717,0.82563036,2673.8,2673.5,0.026738]
[1646880432918,3.85401,2674.2,2673.7,0.028634]
[1646880433121,3.85401,2674.2,2673.8,0.027164]
[1646880433122,1.9824,2674.2,2673.8,0.027164]
[1646880433317,0.9824,2674.2,2673.8,0.027164]
[1646880434173,0.93572,2674.1,2673.9,0.027152]
[1646880434563,0.93572,2674.1,2673.7,0.028634]
[1646880435062,1.87151,2674.1,2673.7,0.028634]
[1646880435264,1.87151,2674.1,2673.9,0.028507]
[1646880435265,0.93572,2674.1,2673.9,0.028507]
[1646880436566,0.93572,2674.1,2674.0,0.029168]
[1646880436765,0.93572,2674.1,2674.0,0.025673]
[1646880438012,0.93572,2674.1,2674.0,0.025281]
[1646880438412,0.93563,2674.4,2674.0,0.025281]
[1646880438613,0.55546619,2674.5,2674.3,0.029168]
[1646880438813,0.55546619,2674.5,2674.0,0.024501]
[1646880439017,0.03133654,2674.7,2674.4,0.029168]
[1646880439213,0.03133654,2674.7,2674.6,0.027875]
[1646880440015,0.93538,2675.0,2674.5,0.88665924]
[1646880440214,0.93538,2675.0,2674.6,0.08901344]
[1646880440215,0.93839905,2675.0,2674.6,0.08901344]
[1646880440414,0.93839905,2675.0,2674.6,0.11650944]
[1646880440617,0.93839905,2675.0,2674.8,0.028223]